bitfinex-derivatives/quotes_BTCF0:USTF0_20250508
["timestamp","ask_amount","ask_price","bid_price","bid_amount"]
[1746663469841,0.4382216,97178.0,97177.0,0.2057778]
[1746663470540,0.4382216,97178.0,97177.0,0.2067778]
[1746663471935,0.4382216,97178.0,97177.0,0.1939028]
[1746663473431,0.386777,97178.0,97177.0,0.1939028]
[1746663474835,0.386777,97178.0,97177.0,0.16918281]
[1746663475538,0.181,97178.0,97177.0,0.16918281]
[1746663475836,0.181,97178.0,97177.0,0.52998281]
[1746663476337,0.013,97178.0,97177.0,0.52998281]
[1746663476540,0.013,97178.0,97177.0,0.60978281]
[1746663477248,0.013,97178.0,97177.0,0.77778281]
[1746663482136,0.013,97178.0,97177.0,0.76491032]
[1746663483042,0.007,97178.0,97177.0,0.76391032]
[1746663483244,0.002,97178.0,97177.0,0.76491032]
[1746663483446,0.004,97178.0,97177.0,0.76491032]
[1746663483639,0.002,97178.0,97177.0,0.76391032]
[1746663483840,0.003,97178.0,97177.0,0.76491032]
[1746663484040,0.001,97178.0,97177.0,0.76491032]
[1746663484242,0.003,97178.0,97177.0,0.76491032]
[1746663485138,0.003,97178.0,97177.0,0.59691032]
[1746663488147,0.003,97178.0,97177.0,0.76491032]
[1746663489147,0.003,97178.0,97177.0,0.59691032]
[1746663489948,0.003,97178.0,97177.0,0.57219513]
[1746663490848,0.003,97178.0,97177.0,0.21139513]
[1746663491047,0.003,97178.0,97177.0,0.57219513]
[1746663492245,0.003,97178.0,97177.0,0.1985226]
[1746663492451,0.003,97178.0,97177.0,0.5593226]
[1746663497156,0.003,97178.0,97177.0,0.7273226]
[1746663497960,0.003,97178.0,97177.0,0.70260763]
[1746663501964,0.003,97178.0,97177.0,0.34180763]
[1746663502258,0.003,97178.0,97177.0,0.70260763]
[1746663502653,0.003,97178.0,97177.0,0.8153778]
[1746663503463,0.3608,97210.0,97177.0,0.712504]
[1746663503659,0.3608,97210.0,97205.0,0.2057198]
[1746663503857,0.3608,97210.0,97205.0,0.2815998]
[1746663504053,1.5,97209.0,97205.0,0.26358122]
[1746663504263,0.1765396,97206.0,97205.0,0.26358122]
[1746663504654,0.1845396,97206.0,97205.0,0.26358122]
[1746663505051,0.177,97206.0,97205.0,0.26358122]
[1746663505257,0.001,97206.0,97205.0,0.26358122]
[1746663505563,0.016,97206.0,97205.0,0.26458122]
[1746663506063,0.008,97206.0,97205.0,0.23987392]
[1746663506256,0.011,97206.0,97205.0,0.48257392]
[1746663506562,0.007,97206.0,97205.0,0.48257392]
[1746663508164,0.007,97206.0,97205.0,0.31457392]
[1746663508473,0.007,97206.0,97205.0,0.67537392]
[1746663508859,0.0469,97206.0,97205.0,0.67537392]
[1746663509058,0.0469,97206.0,97205.0,0.84337392]
[1746663509567,0.0439,97206.0,97205.0,0.84337392]
[1746663509768,0.0459,97206.0,97205.0,0.84437392]
[1746663509969,0.0429,97206.0,97205.0,0.84337392]
[1746663510156,0.0449,97206.0,97205.0,0.84437392]
[1746663511268,0.0429,97206.0,97205.0,0.84337392]
[1746663511469,0.0459,97206.0,97205.0,0.83407392]
[1746663511669,0.0439,97206.0,97205.0,0.83407392]
[1746663511869,0.0459,97206.0,97205.0,0.83407392]
[1746663512065,0.0429,97206.0,97205.0,0.83307392]
[1746663512270,0.0459,97206.0,97205.0,0.83407392]
[1746663512474,0.0459,97206.0,97205.0,0.47327392]
[1746663512767,0.0459,97206.0,97205.0,0.83407392]
[1746663513170,0.0459,97206.0,97205.0,0.66607392]
[1746663517267,0.0368,97214.0,97213.0,0.2057029]
[1746663517567,0.0368,97214.0,97213.0,0.5665029]
[1746663518575,0.0418,97214.0,97213.0,0.5675029]
[1746663518777,0.0448,97214.0,97213.0,0.5685029]
[1746663520179,0.0448,97214.0,97213.0,0.6086029]
[1746663520376,0.1233,97214.0,97213.0,0.6086029]
[1746663521669,0.1233,97214.0,97213.0,0.64360426]
[1746663522679,0.1233,97214.0,97213.0,0.63073588]
[1746663525985,0.1233,97214.0,97213.0,0.60602858]
[1746663529779,0.1233,97214.0,97213.0,0.24522858]
[1746663529976,0.1233,97214.0,97213.0,0.60602858]
[1746663532068,0.1183,97214.0,97213.0,0.60502858]
[1746663532269,0.1213,97214.0,97213.0,0.60602858]
[1746663533581,0.001,97236.0,97213.0,0.95846936]
[1746663533777,0.001,97236.0,97235.0,0.2056563]
[1746663533978,0.001,97236.0,97235.0,0.25715355]
[1746663534186,0.169,97236.0,97235.0,0.25715355]
[1746663534776,0.177,97236.0,97235.0,0.23914144]
[1746663534977,0.3896542,97236.0,97235.0,0.24014144]
[1746663535178,0.184,97236.0,97235.0,0.24014144]
[1746663535682,0.183,97236.0,97235.0,0.24114144]
[1746663536276,0.3886542,97236.0,97235.0,0.24114144]
[1746663536486,0.183,97236.0,97235.0,0.24114144]
[1746663536879,0.2596,97236.0,97235.0,0.24114144]
[1746663537187,0.2576,97236.0,97235.0,0.24114144]
[1746663539184,0.2556,97236.0,97235.0,0.24014144]
[1746663539783,0.2556,97236.0,97235.0,0.20308339]
[1746663539983,0.2496,97236.0,97235.0,0.20208339]
[1746663540288,0.2546,97236.0,97235.0,0.20308339]
[1746663541088,0.3546,97236.0,97235.0,0.20308339]
[1746663541390,0.2556,97236.0,97235.0,0.20308339]
[1746663541984,0.2556,97236.0,97235.0,0.17837814]
[1746663542184,0.4612542,97236.0,97235.0,0.17837814]
[1746663543090,0.2556,97236.0,97235.0,0.17837814]
[1746663543288,0.4612542,97236.0,97235.0,0.17837814]
[1746663543590,0.4612542,97236.0,97235.0,0.16551081]
[1746663545792,0.2556,97236.0,97235.0,0.16551081]
[1746663548293,0.4612542,97236.0,97235.0,0.16551081]
[1746663548480,0.4612542,97236.0,97235.0,0.0772]
[1746663548684,0.4612542,97236.0,97235.0,0.2828563]
[1746663549993,0.4612542,97236.0,97235.0,0.25815138]
[1746663550195,0.4612542,97236.0,97235.0,0.29945138]
[1746663553096,0.4552542,97236.0,97235.0,0.29845138]
[1746663553290,0.4602542,97236.0,97235.0,0.29945138]
[1746663553996,0.4592542,97236.0,97235.0,0.28658423]
[1746663554296,0.4592542,97236.0,97235.0,0.28758423]
[1746663554598,0.4552542,97236.0,97235.0,0.28658423]
[1746663554792,0.4592542,97236.0,97235.0,0.28758423]
[1746663554995,0.2536,97236.0,97235.0,0.28758423]
[1746663556197,0.4592542,97236.0,97235.0,0.28758423]
[1746663557498,0.4592542,97236.0,97235.0,0.26957022]
[1746663557695,0.177,97236.0,97235.0,0.26957022]
[1746663557893,0.177,97236.0,97235.0,0.28496583]
[1746663564399,0.177,97236.0,97235.0,0.27209906]
[1746663568307,0.177,97236.0,97235.0,0.2473949]
[1746663570901,0.177,97236.0,97235.0,0.22938045]
[1746663572496,0.173,97236.0,97235.0,0.22838045]
[1746663572696,0.177,97236.0,97235.0,0.22938045]
[1746663574205,0.173,97236.0,97235.0,0.22838045]
[1746663574401,0.177,97236.0,97235.0,0.22838045]
[1746663575000,0.177,97236.0,97235.0,0.21551416]
[1746663575192,0.178,97236.0,97235.0,0.21551416]
[1746663575805,0.174,97236.0,97235.0,0.21551416]
[1746663576004,0.173,97236.0,97235.0,0.21451416]
[1746663576203,0.177,97236.0,97235.0,0.19081088]
[1746663581704,0.4826542,97236.0,97235.0,0.15071088]
[1746663582007,0.5326542,97236.0,97235.0,0.10941088]
[1746663582402,0.5148542,97236.0,97235.0,0.10941088]
[1746663582608,0.5148542,97236.0,97235.0,0.14861088]
[1746663583814,0.227,97236.0,97235.0,0.14861088]
[1746663584110,0.227,97236.0,97235.0,0.18751088]
[1746663584305,0.177,97236.0,97235.0,0.16280617]
[1746663585010,0.177,97236.0,97235.0,0.06108615]
[1746663585205,0.177,97236.0,97235.0,0.26674245]
[1746663588316,0.009,97236.0,97235.0,0.26674245]
[1746663591315,0.009,97236.0,97235.0,0.62754245]
[1746663592304,0.009,97236.0,97235.0,0.6028425]
[1746663593917,0.005,97236.0,97235.0,0.6028425]
[1746663594116,0.005,97236.0,97235.0,0.6038425]
[1746663594316,0.003,97236.0,97235.0,0.6038425]
[1746663595012,0.003,97236.0,97235.0,0.59097803]
[1746663595617,0.002,97236.0,97235.0,0.59097803]
[1746663595913,0.2900542,97236.0,97235.0,0.59097803]
[1746663596114,0.2900542,97236.0,97235.0,0.59197803]
[1746663598217,0.2900542,97236.0,97235.0,0.58997803]
[1746663598414,0.2910542,97236.0,97235.0,0.58997803]
[1746663599019,0.2900542,97236.0,97235.0,0.58997803]
[1746663599206,0.2910542,97236.0,97235.0,0.58997803]
[1746663600310,0.2910542,97236.0,97235.0,0.56527824]
[1746663600819,0.0015,97250.0,97249.0,0.2056267]
[1746663601115,0.1695,97250.0,97249.0,0.6419467]
[1746663601913,0.1735,97250.0,97249.0,0.6429467]
[1746663602122,0.1755,97250.0,97249.0,0.6429467]
[1746663603518,0.1755,97250.0,97249.0,0.6823467]
[1746663603821,0.1725,97250.0,97249.0,0.6813467]
[1746663604124,0.0045,97250.0,97249.0,0.6813467]
[1746663604329,0.0035,97250.0,97249.0,0.6813467]
[1746663604623,0.0025,97250.0,97249.0,0.6813467]
[1746663604921,0.0025,97250.0,97249.0,0.6823467]
[1746663605324,0.0015,97250.0,97249.0,0.66948342]
[1746663606826,0.0025,97250.0,97249.0,0.66948342]
[1746663607028,0.0025,97250.0,97249.0,0.66848342]
[1746663607219,0.0025,97250.0,97249.0,0.66948342]
[1746663608527,0.0025,97250.0,97249.0,0.64478607]
[1746663610735,0.0025,97250.0,97249.0,0.63448607]
[1746663611334,0.0025,97250.0,97249.0,0.59508607]
[1746663612133,0.1705,97250.0,97249.0,0.59508607]
[1746663613436,0.1705,97250.0,97249.0,0.63458607]
[1746663614032,0.1705,97250.0,97249.0,0.59508607]
[1746663615729,0.1705,97250.0,97249.0,0.58222294]
[1746663616436,0.1705,97250.0,97249.0,0.55752322]
[1746663621440,0.1705,97250.0,97249.0,0.53951332]
[1746663622646,0.6289526,97250.0,97249.0,0.17871332]
[1746663623236,2.2088526,97250.0,97249.0,0.10319332]
[1746663624239,2.2088526,97250.0,97249.0,0.07849282]
[1746663624446,2.2088526,97250.0,97249.0,0.2066267]
[1746663625134,2.1060246,97250.0,97249.0,0.2066267]
[1746663626245,2.1060246,97250.0,97249.0,0.19376162]
[1746663631452,2.4668246,97250.0,97249.0,0.19376162]
[1746663632253,2.4668246,97250.0,97249.0,0.16905983]
[1746663632453,0.2056479,97240.0,97239.0,0.2570512]
[1746663632754,0.2556479,97240.0,97239.0,0.2966512]
[1746663632948,0.3781479,97240.0,97239.0,0.2966512]
[1746663633253,0.5461479,97240.0,97239.0,0.2966512]
[1746663633753,0.5471479,97240.0,97239.0,0.3026512]
[1746663634853,0.5491479,97240.0,97239.0,0.3036512]
[1746663635055,0.5491479,97240.0,97239.0,0.0466]
[1746663635551,0.5491479,97240.0,97239.0,0.02858712]
[1746663635957,0.5481479,97240.0,97239.0,0.02158712]
[1746663636151,0.5511479,97240.0,97239.0,0.22723502]
[1746663636355,0.5511479,97240.0,97239.0,0.21436852]
[1746663638356,0.5511479,97240.0,97239.0,0.17731323]
[1746663639256,0.2056521,97238.0,97237.0,0.2056507]
[1746663639648,0.2852521,97238.0,97237.0,0.2056507]
[1746663640157,0.4532521,97238.0,97237.0,0.2056507]
[1746663640356,0.4532521,97238.0,97237.0,0.18094716]
[1746663640556,0.4552521,97238.0,97237.0,0.18094716]
[1746663641254,0.4572521,97238.0,97237.0,0.18094716]
[1746663641957,0.4572521,97238.0,97237.0,0.22334716]
[1746663643358,0.4572521,97238.0,97237.0,0.26604716]
[1746663643563,0.4572521,97238.0,97237.0,0.24803417]
[1746663644362,0.4572521,97238.0,97237.0,0.21097886]
[1746663645163,0.5072521,97238.0,97237.0,0.21097886]
[1746663646568,0.5072521,97238.0,97237.0,0.19811192]
[1746663648266,0.5072521,97238.0,97237.0,0.1734074]
[1746663650561,0.5072521,97238.0,97237.0,0.0851]
[1746663650762,0.5072521,97238.0,97233.0,0.205659]
[1746663650763,0.2056965,97218.0,97217.0,0.0514234]
[1746663651063,0.05,97220.0,97219.0,0.2056881]
[1746663651261,0.05,97220.0,97219.0,0.2453881]
[1746663652165,0.002,97238.0,97232.0,0.2056547]
[1746663652166,0.2570843,97233.0,97232.0,0.2056547]
[1746663652373,0.3070843,97233.0,97232.0,0.2056547]
[1746663652568,0.4070843,97233.0,97232.0,0.2056547]
[1746663652774,0.2056669,97231.0,97230.0,0.2056665]
[1746663652958,0.2056669,97231.0,97217.0,0.007]
[1746663652959,0.2056881,97220.0,97217.0,0.007]
[1746663653272,0.2056923,97218.0,97217.0,0.2196944]
[1746663653569,0.2056923,97218.0,97217.0,0.2126944]
[1746663653971,0.2471923,97218.0,97217.0,0.2056944]
[1746663654169,0.4151923,97218.0,97217.0,0.2056944]
[1746663654571,1.9151923,97218.0,97217.0,0.2056944]
[1746663654770,1.9161923,97218.0,97217.0,0.2126944]
[1746663655470,1.9171923,97218.0,97217.0,0.2196944]
[1746663656664,1.9171923,97218.0,97217.0,0.20682487]
[1746663659168,1.9671923,97218.0,97217.0,0.20682487]
[1746663661782,1.9671923,97218.0,97217.0,0.24682487]
[1746663662881,1.9671923,97218.0,97217.0,0.22211532]
[1746663664079,2.0068923,97218.0,97217.0,0.22211532]
[1746663666885,2.0068923,97218.0,97217.0,0.20924576]
[1746663667283,2.0068923,97218.0,97217.0,0.19122838]
[1746663668984,1.9653923,97218.0,97217.0,0.19122838]
[1746663669177,1.72,97218.0,97217.0,0.19122838]
[1746663669378,1.8756923,97218.0,97217.0,0.23502838]
[1746663669585,1.67,97218.0,97217.0,0.23502838]
[1746663669778,1.8756923,97218.0,97217.0,0.23502838]
[1746663670180,1.7076923,97218.0,97217.0,0.23502838]
[1746663670884,1.7076923,97218.0,97217.0,0.21032096]
[1746663671878,1.502,97218.0,97217.0,0.21032096]
[1746663672077,1.7076923,97218.0,97217.0,0.21032096]
[1746663675978,1.502,97218.0,97217.0,0.21032096]
[1746663676180,1.7076923,97218.0,97217.0,0.21032096]
[1746663676482,1.502,97218.0,97217.0,0.21032096]
[1746663676682,1.7076923,97218.0,97217.0,0.21032096]
[1746663677486,1.7076923,97218.0,97217.0,0.19745211]
[1746663678883,1.7076923,97218.0,97217.0,0.0978]
[1746663679081,1.7076923,97218.0,97217.0,0.3034944]
[1746663685393,1.7076923,97218.0,97217.0,0.2964944]
[1746663685595,1.7076923,97218.0,97217.0,0.28547799]
[1746663685997,1.502,97218.0,97217.0,0.28547799]
[1746663686698,0.002,97218.0,97217.0,0.28547799]
[1746663686895,0.002,97218.0,97217.0,0.26076993]
[1746663687490,0.002,97218.0,97217.0,0.24790115]
[1746663689600,0.2076923,97218.0,97217.0,0.2056944]
[1746663689806,0.3576923,97218.0,97217.0,0.2056944]
[1746663689994,0.4406923,97218.0,97217.0,0.2056944]
[1746663690194,0.5086923,97218.0,97217.0,0.2056944]
[1746663690497,0.5156923,97218.0,97217.0,0.2056944]
[1746663690697,0.6156923,97218.0,97217.0,0.2056944]
[1746663690893,0.2057008,97214.0,97213.0,0.03500136]
[1746663691098,0.4085741,97210.0,97209.0,0.2057029]
[1746663692307,0.5765741,97210.0,97209.0,0.2057029]
[1746663693301,0.6194741,97210.0,97209.0,0.2057029]
[1746663694206,0.6264741,97210.0,97209.0,0.2077029]
[1746663694504,0.6342593,97210.0,97209.0,0.2077029]
[1746663694907,0.6342593,97210.0,97209.0,0.18299223]
[1746663696804,0.6842593,97210.0,97209.0,0.18299223]
[1746663697405,0.5328305,97210.0,97209.0,0.18299223]
[1746663697599,0.2327852,97210.0,97209.0,0.18299223]
[1746663698207,0.0147852,97210.0,97209.0,0.25562211]
[1746663699107,0.0147852,97210.0,97209.0,0.61642211]
[1746663699296,0.007,97210.0,97209.0,0.61642211]
[1746663701107,0.007,97210.0,97209.0,0.59840562]
[1746663702405,0.007,97210.0,97209.0,0.86927762]
[1746663702908,0.007,97210.0,97209.0,0.84456952]
[1746663703411,0.003,97210.0,97209.0,0.84356952]
[1746663703610,0.006,97210.0,97209.0,0.84456952]
[1746663704303,0.0444,97219.0,97218.0,0.2056923]
[1746663704501,0.25798817,97219.0,97218.0,0.2056923]
[1746663705106,0.42598817,97219.0,97218.0,0.2056923]
[1746663705312,0.22029797,97219.0,97218.0,0.2056923]
[1746663705610,0.43098817,97219.0,97218.0,0.2066923]
[1746663707110,0.43698817,97219.0,97218.0,0.2076923]
[1746663709313,0.53698817,97219.0,97218.0,0.19482329]
[1746663709812,0.58698817,97219.0,97218.0,0.19482329]
[1746663711014,0.58698817,97219.0,97218.0,0.1701147]
[1746663712714,0.48698817,97219.0,97218.0,0.1701147]
[1746663714215,0.43698817,97219.0,97218.0,0.1701147]
[1746663715513,0.53698817,97219.0,97218.0,0.1701147]
[1746663716016,0.53698817,97219.0,97218.0,0.1598147]
[1746663717509,0.53698817,97219.0,97218.0,0.002]
[1746663718615,0.53698817,97219.0,97218.0,0.2076923]
[1746663718913,0.53698817,97219.0,97218.0,0.2056923]
[1746663719105,0.53698817,97219.0,97218.0,0.18298176]
[1746663719309,0.58698817,97219.0,97218.0,0.18298176]
[1746663719816,0.58698817,97219.0,97218.0,0.17011169]
[1746663726018,0.58698817,97219.0,97218.0,0.13304588]
[1746663726319,0.58698817,97219.0,97218.0,0.11502778]
[1746663726320,0.94778817,97219.0,97218.0,0.11502778]
[1746663727124,0.205705,97214.0,97213.0,0.0514252]
[1746663727420,0.2057071,97211.0,97210.0,0.2571317]
[1746663727619,0.2057071,97211.0,97207.0,0.0780846]
[1746663727620,0.2057135,97210.0,97209.0,0.2057094]
[1746663727811,0.2910135,97210.0,97209.0,0.2057094]
[1746663728311,0.4590135,97210.0,97209.0,0.2057094]
[1746663729220,0.4620135,97210.0,97209.0,0.2067094]
[1746663729718,0.4620135,97210.0,97209.0,0.19383933]
[1746663729919,0.8268135,97210.0,97209.0,0.002]
[1746663730113,0.2057177,97206.0,97205.0,1e-08]
[1746663730316,0.8193937,97206.0,97205.0,1e-08]
[1746663730514,2.3193937,97206.0,97205.0,1e-08]
[1746663730919,2.4100937,97206.0,97205.0,1e-08]
[1746663731124,2.5780937,97206.0,97205.0,1e-08]
[1746663731325,2.5810937,97206.0,97205.0,0.00100001]
[1746663731823,0.2057346,97198.0,97197.0,0.00154325]
[1746663732024,0.7165346,97198.0,97197.0,0.00154325]
[1746663732227,0.8845346,97198.0,97197.0,0.00154325]
[1746663732529,0.8845346,97198.0,97197.0,0.20727995]
[1746663732826,0.9714346,97198.0,97197.0,0.20727995]
[1746663733218,0.9724346,97198.0,97197.0,0.20927995]
[1746663734726,0.9734346,97198.0,97197.0,0.21127995]
[1746663735128,0.9734346,97198.0,97197.0,0.18656358]
[1746663738728,0.9734346,97198.0,97197.0,0.004]
[1746663739431,0.2057431,97194.0,97193.0,0.02281847]
[1746663739623,0.20576,97186.0,97185.0,0.2814005]
[1746663739824,0.20576,97186.0,97184.0,0.0514407]
[1746663739825,0.2057664,97184.0,97182.0,0.095942]
[1746663740019,0.3057664,97184.0,97183.0,0.2057663]
[1746663740224,0.0514436,97180.0,97177.0,0.0419]
[1746663740424,0.255777,97178.0,97177.0,0.23480314]
[1746663740633,0.2057791,97177.0,97176.0,0.0445]
[1746663740827,0.2057791,97177.0,97175.0,0.00102907]
[1746663740828,0.2057812,97176.0,97175.0,0.00102907]
[1746663741130,0.3737812,97176.0,97175.0,0.02432231]
[1746663741326,0.4576812,97176.0,97175.0,0.23010561]
[1746663741527,0.4576812,97176.0,97175.0,0.02432231]
[1746663741726,0.4576812,97176.0,97175.0,0.23010561]
[1746663742132,0.4576812,97176.0,97175.0,0.00102907]
[1746663742340,0.4586812,97176.0,97175.0,0.00102907]
[1746663742529,0.5586812,97176.0,97175.0,0.00102907]
[1746663743032,0.2057876,97173.0,97172.0,0.18209744]
[1746663743232,0.2557876,97173.0,97172.0,0.18209744]
[1746663743841,0.3411876,97173.0,97172.0,0.18209744]
[1746663744144,0.5091876,97173.0,97172.0,0.18209744]
[1746663745033,0.5101876,97173.0,97172.0,0.20560629]
[1746663745644,0.5111876,97173.0,97172.0,0.20560629]
[1746663746545,0.6111876,97173.0,97172.0,0.001]
[1746663746739,0.0514494,97169.0,97165.0,0.0844]
[1746663746945,0.2558024,97166.0,97165.0,0.3416494]
[1746663747243,0.4238024,97166.0,97165.0,0.3416494]
[1746663747839,0.318,97166.0,97146.0,0.051461]
[1746663748045,0.0514549,97158.0,97145.0,0.07658938]
[1746663748343,0.2058448,97146.0,97145.0,0.02435762]
[1746663748543,1.8558448,97146.0,97145.0,0.02435762]
[1746663748929,1.8558448,97146.0,97145.0,0.02332824]
[1746663749135,0.2058553,97141.0,97140.0,0.2573109]
[1746663749340,0.2558553,97141.0,97140.0,0.2058469]
[1746663749743,0.2558553,97141.0,97140.0,0.22934259]
[1746663749944,0.3450553,97141.0,97140.0,0.22934259]
[1746663750142,0.3450553,97141.0,97140.0,0.02349569]
[1746663750342,0.2058681,97135.0,97134.0,0.07556]
[1746663750548,0.2058829,97129.0,97128.0,0.24446855]
[1746663750941,0.2475829,97129.0,97128.0,0.21973633]
[1746663751254,0.2475829,97129.0,97128.0,0.26333633]
[1746663752143,0.2485829,97129.0,97128.0,0.28602229]
[1746663752953,0.2495829,97129.0,97128.0,0.28602229]
[1746663753538,0.2495829,97129.0,97128.0,0.32782229]
[1746663755352,0.2495829,97129.0,97128.0,0.27635169]
[1746663755548,0.2933829,97129.0,97128.0,0.27635169]
[1746663763056,0.0437,97129.0,97128.0,0.37930769]
[1746663763355,0.002,97129.0,97128.0,0.37930769]
[1746663764155,0.002,97129.0,97128.0,0.54730769]
[1746663765249,0.2078808,97129.0,97128.0,0.35895169]
[1746663765445,0.2078808,97129.0,97128.0,0.19068596]
[1746663765653,0.2058977,97121.0,97098.0,0.3608]
[1746663765957,0.7166977,97121.0,97120.0,0.2814599]
[1746663766155,2.3846977,97121.0,97120.0,0.2814599]
[1746663766360,2.3846977,97121.0,97120.0,0.30416808]
[1746663766658,2.4746977,97121.0,97120.0,0.30416808]
[1746663766853,2.1138977,97121.0,97120.0,0.22860808]
[1746663767051,2.4746977,97121.0,97120.0,0.22860808]
[1746663767451,2.4746977,97121.0,97120.0,0.21572563]
[1746663767651,2.4756977,97121.0,97120.0,0.21572563]
[1746663768254,2.4766977,97121.0,97120.0,0.21572563]
[1746663768647,2.4766977,97121.0,97120.0,0.19099133]
[1746663769158,2.3766977,97121.0,97120.0,0.19099133]
[1746663770962,0.8766977,97121.0,97120.0,0.19099133]
[1746663771751,0.5158977,97121.0,97120.0,0.19099133]
[1746663773061,0.31,97121.0,97120.0,0.19099133]
[1746663773658,0.31,97121.0,97120.0,0.23419133]
[1746663774261,0.142,97121.0,97120.0,0.23419133]
[1746663775163,0.31,97121.0,97120.0,0.23419133]
[1746663776655,0.31,97121.0,97120.0,0.20945857]
[1746663777865,0.2159,97121.0,97120.0,0.20945857]
[1746663778055,0.2159,97121.0,97120.0,0.19657737]
[1746663778255,0.0479,97121.0,97120.0,0.19657737]
[1746663781365,0.0479,97121.0,97120.0,0.36457737]
[1746663784168,0.0479,97121.0,97120.0,0.19657737]
[1746663784569,0.0479,97121.0,97120.0,0.17184616]
[1746663787760,0.0479,97121.0,97120.0,0.27481016]
[1746663788367,0.0479,97121.0,97120.0,0.26192965]
[1746663789168,0.0479,97121.0,97120.0,0.42992965]
[1746663789872,0.0479,97121.0,97120.0,0.32696565]
[1746663791475,0.0479,97121.0,97120.0,0.68776565]
[1746663791666,0.0479,97121.0,97120.0,0.76332565]
[1746663792066,0.0479,97121.0,97120.0,0.59532565]
[1746663792575,0.0479,97121.0,97120.0,0.50226818]
[1746663792769,0.0479,97121.0,97120.0,0.75286808]
[1746663792964,0.0479,97121.0,97120.0,0.67730808]
[1746663793164,0.0479,97121.0,97120.0,0.27180808]
[1746663793569,0.0479,97121.0,97120.0,0.45033208]
[1746663794074,0.0514634,97142.0,97130.0,0.0514691]
[1746663794373,1.5,97153.0,97134.0,0.0514673]
[1746663794563,0.2073469,97145.0,97144.0,0.205849]
[1746663795976,0.2133469,97145.0,97144.0,0.205849]
[1746663797174,0.2573371,97136.0,97135.0,0.2573254]
[1746663797378,0.2573371,97136.0,97126.0,0.3608]
[1746663797379,0.2058723,97134.0,97133.0,0.205871]
[1746663797580,0.2058723,97134.0,97129.0,0.07556]
[1746663797581,0.2573477,97132.0,97131.0,0.205875]
[1746663797879,0.2058787,97130.0,97129.0,0.3329091]
[1746663798477,0.2901787,97130.0,97129.0,0.3329091]
[1746663798882,0.2901787,97130.0,97129.0,0.32002904]
[1746663799791,0.2901787,97130.0,97129.0,0.2573491]
[1746663800476,0.2911787,97130.0,97129.0,0.2573491]
[1746663800674,0.2911787,97130.0,97129.0,0.23261859]
[1746663800875,0.2921787,97130.0,97129.0,0.23361859]
[1746663805085,0.0863,97130.0,97129.0,0.23361859]
[1746663805279,0.0863,97130.0,97129.0,0.59441859]
[1746663805679,0.002,97130.0,97129.0,0.69737459]
[1746663805882,0.03865997,97144.0,97143.0,0.2058511]
[1746663806179,0.3558213,97161.0,97160.0,0.3087175]
[1746663806577,1.8558213,97161.0,97160.0,0.29068828]
[1746663806980,1.55,97161.0,97160.0,0.29068828]
[1746663807176,0.0455,97165.0,97164.0,0.2058066]
[1746663807371,0.2513045,97165.0,97164.0,0.2058066]
[1746663807983,0.2513045,97165.0,97164.0,0.2501066]
[1746663808483,0.2613045,97165.0,97164.0,0.2501066]
[1746663808678,0.2613045,97165.0,97164.0,0.22538575]
[1746663809076,0.3036045,97165.0,97164.0,0.21251034]
[1746663809271,0.2936045,97165.0,97164.0,0.21251034]
[1746663809575,0.3006045,97165.0,97164.0,0.21251034]
[1746663809785,0.3106045,97165.0,97164.0,0.21251034]
[1746663810576,0.3076045,97165.0,97164.0,0.21251034]
[1746663810778,0.3006045,97165.0,97164.0,0.1754292]
[1746663811084,0.3076045,97165.0,97164.0,0.1754292]
[1746663811285,0.3437045,97165.0,97164.0,0.21697569]
[1746663811485,0.3507045,97165.0,97164.0,0.21697569]
[1746663812987,0.4007045,97165.0,97164.0,0.21697569]
[1746663813785,0.4007045,97165.0,97164.0,0.17267569]
[1746663814886,0.4007045,97165.0,97164.0,0.15464896]
[1746663815086,0.6687045,97165.0,97164.0,0.15464896]
[1746663815787,2.1687045,97165.0,97164.0,0.11310247]
[1746663816285,0.0514526,97163.0,97160.0,0.07556]
[1746663816589,0.0514526,97163.0,97159.0,0.0514538]
[1746663816590,0.3058151,97160.0,97159.0,0.22194317]
[1746663816889,0.3558151,97160.0,97159.0,0.18109176]
[1746663817184,0.6087151,97160.0,97159.0,0.18109176]
[1746663817390,0.6087151,97160.0,97159.0,0.14400143]
[1746663817790,2.1087151,97160.0,97159.0,0.14400143]
[1746663818091,2.1147151,97160.0,97159.0,0.14400143]
[1746663818278,2.0647151,97160.0,97159.0,0.14400143]
[1746663818992,2.0647151,97160.0,97159.0,0.1311231]
[1746663819183,2.0727151,97160.0,97159.0,0.1311231]
[1746663820390,2.0757151,97160.0,97159.0,0.1311231]
[1746663823197,2.1257151,97160.0,97159.0,0.1311231]
[1746663823396,2.1257151,97160.0,97159.0,0.0940335]
[1746663823695,0.2058236,97157.0,97156.0,0.2058233]
[1746663824193,0.5602236,97157.0,97156.0,0.2495233]
[1746663824386,2.0602236,97157.0,97156.0,0.2495233]
[1746663824587,2.0602236,97157.0,97156.0,0.22479688]
[1746663824786,2.0672236,97157.0,97156.0,0.22479688]
[1746663825194,2.0752236,97157.0,97156.0,0.22479688]
[1746663827695,2.4360236,97157.0,97156.0,0.22479688]
[1746663829397,2.4360236,97157.0,97156.0,0.1748284]
[1746663829697,2.3360236,97157.0,97156.0,0.1748284]
[1746663829997,2.4360236,97157.0,97156.0,0.1748284]
[1746663831199,2.4860236,97157.0,97156.0,0.1748284]
[1746663832601,2.3860236,97157.0,97156.0,0.15010172]
[1746663832993,2.3860236,97157.0,97156.0,0.13207185]
[1746663835402,2.3860236,97157.0,97156.0,0.0437]
[1746663835601,2.3860236,97157.0,97156.0,0.2495233]
[1746663835794,2.3860236,97157.0,97156.0,0.2913233]
[1746663838503,2.0252236,97157.0,97156.0,0.2913233]
[1746663838798,2.3860236,97157.0,97156.0,0.2913233]
[1746663839606,2.3860236,97157.0,97156.0,0.27844508]
[1746663840309,2.1750236,97157.0,97156.0,0.27844508]
[1746663840507,2.1316236,97157.0,97156.0,0.32294508]
[1746663840711,1.8758,97157.0,97156.0,0.29822057]
[1746663840910,0.3758,97157.0,97156.0,0.28019242]
[1746663841609,0.015,97157.0,97156.0,0.24310589]
[1746663842214,0.015,97157.0,97156.0,0.41110589]
[1746663843112,0.015,97157.0,97156.0,0.24310589]
[1746663843414,0.2208214,97157.0,97156.0,0.24310589]
[1746663846517,0.2198214,97157.0,97156.0,0.24310589]
[1746663846812,0.2128214,97157.0,97156.0,0.24310589]
[1746663847017,0.2198214,97157.0,97156.0,0.24310589]
[1746663848519,0.2198214,97157.0,97156.0,0.21838142]
[1746663849822,0.2198214,97157.0,97156.0,0.16100407]
[1746663851908,0.014,97157.0,97156.0,0.16100407]